bitfinex/quotes_SOLUSD_20260115
["timestamp","ask_amount","ask_price","bid_price","bid_amount"]
[1768438420600,0.69518451,145.54,145.5,0.68116733]
[1768438420822,0.69518451,145.54,145.5,2.71034032]
[1768438421101,0.69518451,145.54,145.51,0.68116733]
[1768438422497,0.69518451,145.54,145.51,2.71034032]
[1768438423388,0.69518451,145.54,145.52,0.68116733]
[1768438423589,0.69518451,145.55,145.52,0.68116733]
[1768438423796,0.69518451,145.56,145.53,0.68116733]
[1768438424494,0.69518451,145.56,145.52,3.16894296]
[1768438424696,0.69518451,145.56,145.52,3.85011029]
[1768438425594,0.69518451,145.56,145.53,0.68116733]
[1768438431397,0.2,145.58,145.54,3.82544718]
[1768438431705,0.2,145.58,145.56,0.65650422]
[1768438433417,0.2,145.58,145.57,0.65650422]
[1768438436819,0.2,145.58,145.55,0.65650422]
[1768438436820,0.90645087,145.58,145.55,0.65650422]
[1768438438595,0.2,145.58,145.56,0.65650422]
[1768438438918,0.2,145.59,145.58,0.65650422]
[1768438439096,0.2,145.59,145.58,0.59650422]
[1768438439296,0.2,145.59,145.56,3.16894296]
[1768438441113,0.2,145.59,145.57,0.65650422]
[1768438447723,0.70645087,145.58,145.55,0.65650422]
[1768438447922,0.70645087,145.58,145.55,3.82544718]
[1768438448219,0.70645087,145.58,145.52,0.65650422]
[1768438448424,0.70645087,145.55,145.51,3.82544718]
[1768438449420,0.70645087,145.55,145.52,0.65650422]
[1768438452519,0.70645087,145.52,145.48,0.65650422]
[1768438452723,3.16894296,145.52,145.47,0.65650422]
[1768438453023,12.52,145.54,145.47,0.65650422]
[1768438453024,3.16894296,145.51,145.47,0.65650422]
[1768438453218,3.16894296,145.52,145.47,0.65650422]
[1768438453619,3.16894296,145.52,145.47,3.82544718]
[1768438453819,19.391422,145.54,145.47,3.82544718]
[1768438454118,3.16894296,145.52,145.47,3.82544718]
[1768438454641,0.70645087,145.51,145.47,3.82544718]
[1768438456848,0.70645087,145.51,145.47,0.65650422]
[1768438457753,0.67645088,145.51,145.47,0.65650422]
[1768438461245,0.68550071,145.5,145.47,0.65650422]
[1768438461554,0.65550072,145.5,145.46,3.86033246]
[1768438462239,0.65550072,145.5,145.46,0.6913895]
[1768438462435,0.65550072,145.5,145.45,3.85048703]
[1768438462635,0.65550072,145.5,145.46,0.68154407]
[1768438473163,0.65550072,145.5,145.47,0.68154407]
[1768438479975,0.65550072,145.5,145.46,3.85048703]
[1768438480154,19.39104005,145.54,145.44,6.87542554]
[1768438480155,0.65584634,145.51,145.47,3.85048703]
[1768438480465,0.65584634,145.51,145.48,0.68154407]
[1768438480855,0.65584634,145.51,145.47,0.68154407]
[1768438481057,0.65584634,145.51,145.47,3.85048703]
[1768438481261,0.65584634,145.51,145.47,0.68154407]
[1768438489777,0.65584634,145.51,145.47,2.71097088]
[1768438492490,0.65584634,145.51,145.47,0.68154407]
[1768438492675,0.65584634,145.51,145.47,2.71097088]
[1768438497783,0.65584634,145.51,145.47,0.68154407]
[1768438501089,0.65584634,145.51,145.47,2.71097088]
[1768438501281,0.70691003,145.53,145.49,0.67779227]
[1768438501486,0.70691003,145.53,145.5,0.67779227]
[1768438502281,0.70691003,145.53,145.49,0.67779227]
[1768438504183,0.70691003,145.53,145.49,2.70721908]
[1768438505076,0.70691003,145.56,145.52,0.67779227]
[1768438505277,0.70691003,145.56,145.53,2.70721908]
[1768438507414,7.06868659,145.59,145.54,2.70721908]
[1768438507415,0.70691003,145.58,145.54,2.70721908]
[1768438509313,0.70691003,145.58,145.55,2.70721908]
[1768438510178,0.70691003,145.58,145.54,0.67779227]
[1768438510381,0.70691003,145.58,145.55,2.70721908]
[1768438510608,0.70691003,145.58,145.55,0.67779227]
[1768438511607,0.70691003,145.58,145.55,2.70721908]
[1768438517608,0.70691003,145.58,145.56,2.02942681]
[1768438517918,0.70691003,145.58,145.55,2.70721908]
[1768438520014,0.70691003,145.58,145.51,0.67779227]
[1768438520205,0.70691003,145.58,145.54,2.02942681]
[1768438520712,0.70691003,145.58,145.53,2.70721908]
[1768438521712,0.70691003,145.58,145.53,0.67779227]
[1768438522012,0.68965992,145.57,145.53,2.70721908]
[1768438522220,0.68965992,145.57,145.52,2.02942681]
[1768438522388,0.68965992,145.56,145.5,0.65255177]
[1768438522590,0.68965992,145.56,145.51,2.02942681]
[1768438522591,0.68965992,145.55,145.51,2.02942681]
[1768438522994,0.68965992,145.55,145.51,2.68197858]
[1768438523198,0.68965992,145.55,145.5,2.68197858]
[1768438523391,0.68965992,145.54,145.49,2.68197858]
[1768438523806,0.68965992,145.56,145.52,0.65255177]
[1768438524013,0.68965992,145.56,145.52,2.68197858]
[1768438525001,0.68965992,145.56,145.52,0.65255177]
[1768438529427,0.68965992,145.55,145.5,2.68197858]
[1768438529621,0.68965992,145.54,145.5,2.68197858]
[1768438531733,0.68965992,145.54,145.51,2.02942681]
[1768438534037,0.68965992,145.55,145.52,0.65255177]
[1768438534626,0.68965992,145.57,145.54,0.65255177]
[1768438534826,0.68965992,145.56,145.51,0.65255177]
[1768438535026,0.68965992,145.56,145.51,2.68197858]
[1768438535739,0.68965992,145.56,145.52,0.65255177]
[1768438536533,0.68965992,145.56,145.51,2.68197858]
[1768438539741,0.68965992,145.55,145.51,2.68197858]
[1768438541836,0.68965992,145.55,145.51,0.65255177]
[1768438542028,0.68965992,145.55,145.51,2.68197858]
[1768438543442,0.68965992,145.55,145.51,3.82143439]
[1768438545518,12.52,145.57,145.52,0.65255177]
[1768438545723,0.68965992,145.58,145.54,0.65255177]
[1768438547347,0.68965992,145.58,145.53,3.16888262]
[1768438547348,0.68965992,145.57,145.53,0.65255177]
[1768438549247,0.68965992,145.57,145.52,3.82143439]
[1768438549446,3.85854254,145.57,145.52,0.65255177]
[1768438549627,0.68965992,145.56,145.52,0.65255177]
[1768438550946,0.68965992,145.56,145.52,3.82143439]
[1768438552167,0.68965992,145.56,145.53,0.66201641]
[1768438554067,0.7103543,145.57,145.54,0.66201641]
[1768438558666,0.7103543,145.57,145.53,0.66201641]
[1768438561256,0.7103543,145.56,145.53,0.66201641]
[1768438566868,0.7103543,145.57,145.53,0.66201641]
[1768438567991,17.37203673,145.59,145.53,0.66201641]
[1768438567992,0.2,145.59,145.53,0.66201641]
[1768438568291,0.7103543,145.57,145.53,0.66201641]
[1768438570790,0.7103543,145.56,145.53,0.66201641]
[1768438571379,0.7103543,145.56,145.51,3.83089903]
[1768438571582,0.7103543,145.53,145.49,0.66201641]
[1768438572283,0.7103543,145.52,145.48,0.66201641]
[1768438574402,0.7103543,145.52,145.48,3.83089903]
[1768438575105,0.7103543,145.52,145.49,0.66201641]
[1768438576897,0.7103543,145.52,145.49,3.83089903]
[1768438578599,0.7103543,145.52,145.49,0.66201641]
[1768438583411,0.7103543,145.52,145.49,3.83089903]
[1768438588594,0.7103543,145.52,145.49,0.66201641]
[1768438589506,0.7103543,145.52,145.48,3.83963962]
[1768438589715,0.7103543,145.52,145.47,3.83963962]
[1768438590010,0.7103543,145.52,145.47,0.670757]
[1768438590203,0.7103543,145.52,145.47,3.83963962]
[1768438590402,0.7103543,145.52,145.48,0.670757]
[1768438592609,0.6815711,145.51,145.47,0.670757]
[1768438592906,0.6815711,145.51,145.47,3.83963962]
[1768438593296,0.6815711,145.51,145.47,0.670757]
[1768438593493,0.6815711,145.51,145.47,3.83963962]
[1768438598221,0.6815711,145.51,145.48,0.670757]
[1768438598794,0.6815711,145.53,145.5,0.670757]
[1768438598993,0.6815711,145.53,145.5,3.83963962]
[1768438605020,0.6815711,145.53,145.5,0.670757]
[1768438605320,0.6815711,145.53,145.5,2.69913894]
[1768438607210,0.6815711,145.53,145.5,0.670757]
[1768438607510,0.6815711,145.53,145.5,2.69913894]
[1768438608122,0.6815711,145.53,145.5,2.02838194]
[1768438610131,0.6815711,145.53,145.5,2.69913894]
[1768438610427,0.6815711,145.55,145.52,2.69913894]
[1768438610628,0.71470638,145.57,145.53,2.68862867]
[1768438611126,0.71470638,145.57,145.54,0.66024673]
[1768438611517,0.71470638,145.57,145.53,2.68862867]
[1768438612426,0.71470638,145.57,145.54,0.66024673]
[1768438612628,0.71470638,145.57,145.54,2.02838194]
[1768438612833,0.71470638,145.57,145.54,2.68862867]
[1768438613635,0.71470638,145.57,145.54,0.66024673]
[1768438613808,0.71470638,145.57,145.54,2.68862867]
[1768438617110,0.71470638,145.57,145.54,0.66024673]
[1768438618632,0.71470638,145.57,145.54,2.68862867]
[1768438619937,0.71470638,145.57,145.54,0.66024673]
[1768438620738,0.71470638,145.56,145.51,2.68862867]
[1768438620922,0.71470638,145.55,145.51,2.68862867]
[1768438622520,0.71470638,145.55,145.52,0.66024673]
[1768438622850,0.71470638,145.55,145.52,2.68862867]
[1768438623146,0.71470638,145.56,145.53,0.66024673]
[1768438623315,0.71470638,145.58,145.54,0.66024673]
[1768438623510,0.71470638,145.58,145.54,2.62862871]
[1768438625642,0.71470638,145.58,145.55,0.66024673]
[1768438625849,0.91470638,145.59,145.56,0.66024673]
[1768438631944,0.2,145.59,145.56,0.66024673]
[1768438633144,0.91470638,145.59,145.56,0.66024673]
[1768438634044,0.2,145.59,145.56,0.66024673]
[1768438634949,0.2,145.59,145.56,2.68862867]
[1768438635138,0.2,145.59,145.57,0.66024673]
[1768438636243,0.2,145.59,145.57,2.62862874]
[1768438636424,0.2,145.59,145.57,2.56862875]
[1768438638170,0.2,145.59,145.57,2.02838194]
[1768438638528,0.2,145.59,145.57,2.68862867]
[1768438639334,0.2,145.59,145.58,2.68862867]
[1768438639532,0.2,145.6,145.59,0.66024673]
[1768438639760,0.2,145.61,145.59,2.02838194]
[1768438640059,0.2,145.61,145.55,6.87030379]
[1768438640235,0.2,145.61,145.59,2.02838194]
[1768438641858,0.2,145.61,145.59,2.73352692]
[1768438643279,0.91470638,145.62,145.6,2.69957636]
[1768438643280,0.2,145.62,145.6,2.69957636]
[1768438643848,0.2,145.62,145.61,2.02838194]
[1768438644266,0.2,145.62,145.6,0.67119442]
[1768438644579,0.2,145.62,145.6,2.69957636]
[1768438650267,0.2,145.63,145.61,2.69957636]
[1768438650466,0.2,145.65,145.55,5.34408856]
[1768438650467,0.2,145.65,145.63,0.67119442]
[1768438650656,0.86413128,145.65,145.63,2.02838194]
[1768438650862,0.66413128,145.64,145.62,2.02838194]
[1768438651063,0.66413128,145.64,145.61,2.59028377]
[1768438653074,0.66413128,145.64,145.61,2.02838194]
[1768438655281,0.66413128,145.64,145.6,2.59028377]
[1768438658093,0.66413128,145.64,145.6,2.02838194]
[1768438658291,0.66413128,145.64,145.59,2.59028377]
[1768438659284,0.66413128,145.64,145.59,0.56190183]
[1768438659481,0.66413128,145.63,145.59,0.56190183]
[1768438659876,0.66413128,145.63,145.59,2.59028377]
[1768438660273,0.66413128,145.63,145.59,0.56190183]
[1768438661074,0.66413128,145.63,145.59,2.59028377]
[1768438665406,0.66413128,145.63,145.59,3.72726437]
[1768438667071,0.66413128,145.63,145.58,3.72726437]
[1768438667277,0.66413128,145.62,145.58,0.56190183]
[1768438672398,0.71274628,145.61,145.57,3.72726437]
[1768438672608,0.71274628,145.6,145.55,3.72726437]
[1768438672810,0.71274628,145.59,145.55,3.72726437]
[1768438674587,0.71274628,145.59,145.55,0.56190183]
[1768438676399,0.71274628,145.59,145.56,0.56190183]
[1768438677109,0.71274628,145.59,145.55,3.16536254]
[1768438677110,0.71274628,145.59,145.55,3.72726437]
[1768438678009,0.71274628,145.59,145.56,0.56190183]
[1768438680307,0.71274628,145.63,145.58,0.56190183]
[1768438680510,0.71274628,145.62,145.58,0.56190183]
[1768438681592,0.71274628,145.63,145.6,0.56190183]
[1768438681994,0.71274628,145.64,145.6,3.72726437]
[1768438682199,4.07810882,145.65,145.61,0.56190183]
[1768438682602,0.91274628,145.65,145.61,0.56190183]
[1768438683712,0.71274628,145.64,145.61,0.56190183]
[1768438687519,0.71274628,145.64,145.61,3.16536254]
[1768438688518,0.71274628,145.64,145.62,3.16536254]
[1768438688898,0.71274628,145.64,145.61,3.72726437]
[1768438689211,0.91274628,145.65,145.62,0.56190183]
[1768438689594,0.2,145.65,145.62,3.72726437]
[1768438690319,0.91274628,145.65,145.62,3.72726437]
[1768438692934,0.91274628,145.65,145.62,0.56190183]
[1768438693114,0.91274628,145.65,145.62,3.72726437]
[1768438694236,0.2,145.65,145.63,0.56190183]
[1768438696629,0.2,145.65,145.62,3.72726437]
[1768438697130,0.91274628,145.65,145.62,3.72726437]
[1768438700032,0.91274628,145.65,145.62,0.56190183]
[1768438700230,0.71274628,145.64,145.61,3.16536254]
[1768438701337,0.71274628,145.64,145.6,0.56190183]
[1768438701541,0.71274628,145.64,145.61,3.16536254]
[1768438702542,0.71274628,145.64,145.6,0.56190183]
[1768438702838,0.71274628,145.64,145.61,3.16536254]
[1768438703839,0.71274628,145.64,145.61,3.72726437]
[1768438705223,0.71274628,145.64,145.61,0.56190183]
[1768438705430,0.71274628,145.64,145.62,3.16536254]
[1768438705944,0.71274628,145.64,145.61,0.56190183]
[1768438706118,0.71274628,145.64,145.62,3.16536254]
[1768438707751,0.71274628,145.64,145.58,0.56190183]
[1768438707921,0.71274628,145.64,145.6,3.16536254]
[1768438709927,0.68815067,145.63,145.59,3.16536254]
[1768438710621,0.68815067,145.64,145.62,3.16536254]
[1768438710830,0.88815067,145.65,145.62,3.16536254]
[1768438711040,0.2,145.65,145.63,3.16536254]
[1768438713830,0.2,145.65,145.63,3.72726437]
[1768438718480,0.2,145.65,145.63,0.56190183]
[1768438718681,0.2,145.65,145.63,3.72726437]
[1768438719481,0.2,145.66,145.64,3.72726437]
[1768438720162,0.2,145.66,145.65,3.16536254]
[1768438720362,0.01309701,145.66,145.65,3.72726437]
[1768438720681,0.88815067,145.68,145.65,3.72726437]
[1768438720867,0.88815067,145.68,145.66,3.16536254]
[1768438721259,0.88815067,145.68,145.65,0.56190183]
[1768438721564,0.68815067,145.67,145.65,3.16536254]
[1768438721952,0.2,145.68,145.65,3.16536254]
[1768438722173,0.88815067,145.68,145.65,3.72726437]
[1768438724184,0.68815067,145.67,145.64,3.72726437]
[1768438725682,0.68815067,145.67,145.65,3.16536254]
[1768438727493,0.68815067,145.67,145.65,2.02420899]
[1768438730002,0.68815067,145.67,145.61,0.56190183]
[1768438730212,0.68815067,145.67,145.63,2.02420899]
[1768438730795,0.68815067,145.67,145.63,2.58611082]
[1768438731402,0.68815067,145.67,145.63,2.02420899]
[1768438731607,0.68815067,145.67,145.62,0.56190183]
[1768438731907,0.68815067,145.67,145.63,2.02420899]
[1768438733093,0.68815067,145.67,145.62,0.56190183]
[1768438733285,0.68815067,145.67,145.63,2.02420899]
[1768438734098,0.2,145.68,145.66,2.58611082]
[1768438734297,0.2,145.7,145.67,2.18611082]
[1768438734503,0.2,145.7,145.68,2.02420899]
[1768438734998,0.90677612,145.7,145.68,2.02420899]
[1768438735606,0.90677612,145.7,145.67,2.02420899]
[1768438735804,0.90677612,145.7,145.68,2.02420899]
[1768438745497,0.2,145.71,145.69,0.67895147]
[1768438745814,2.02420899,145.77,145.7,2.70316046]
[1768438746025,12.52,145.76,145.71,2.02420899]
[1768438746227,14.54420899,145.76,145.71,2.02420899]
[1768438746995,14.54420899,145.76,145.71,2.70316046]
[1768438747294,12.52,145.75,145.71,2.70316046]
[1768438747498,0.70677612,145.75,145.71,2.70316046]
[1768438747701,0.70677612,145.73,145.71,2.02420899]
[1768438749334,13.22677612,145.74,145.71,2.02420899]
[1768438750436,0.70677612,145.73,145.7,0.67895147]
[1768438750731,0.70677612,145.73,145.7,2.02420899]
[1768438752637,0.70677612,145.73,145.71,2.02420899]
[1768438752933,0.70677612,145.77,145.72,2.70316046]
[1768438753131,0.70677612,145.75,145.72,2.70316046]
[1768438753330,0.70677612,145.75,145.73,2.02420899]
[1768438754423,0.70677612,145.76,145.74,2.02420899]
[1768438754731,13.20677612,145.76,145.74,2.02420899]
[1768438755324,13.20677612,145.76,145.73,2.70316046]
[1768438755636,0.70677612,145.76,145.72,0.67895147]
[1768438755930,13.20677612,145.76,145.73,2.02420899]
[1768438758534,0.70677612,145.75,145.72,2.70316046]
[1768438760334,0.70677612,145.78,145.74,0.67895147]
[1768438760633,0.2,145.79,145.75,2.02420899]
[1768438760832,0.71918185,145.77,145.74,2.02420899]
[1768438761043,0.71918185,145.77,145.73,2.02420899]
[1768438761246,0.71918185,145.77,145.69,24.70770727]
[1768438761537,0.71918185,145.77,145.73,2.02420899]
[1768438764144,0.71918185,145.77,145.72,2.68642909]
[1768438765144,13.16923679,145.76,145.72,2.68642909]
[1768438766146,0.66923679,145.76,145.72,2.68642909]
[1768438766346,13.16923679,145.76,145.72,2.68642909]
[1768438767041,13.16923679,145.76,145.73,0.6622201]
[1768438769957,0.66923679,145.77,145.73,2.68642909]
[1768438770133,0.66923679,145.77,145.74,2.02420899]
[1768438770648,0.66923679,145.77,145.73,0.6622201]
[1768438770954,0.66923679,145.77,145.74,2.02420899]
[1768438771248,12.5,145.78,145.74,2.02420899]
[1768438771249,0.2,145.79,145.78,2.44766007]
[1768438771453,0.66923679,145.8,145.78,4.47186906]
[1768438772246,0.66923679,145.8,145.74,0.6622201]
[1768438772445,0.66923679,145.79,145.74,2.68642909]
[1768438772870,0.66923679,145.79,145.75,2.68642909]
[1768438774958,0.1,145.82,145.78,2.68642909]
[1768438775332,0.76923679,145.82,145.78,2.68642909]
[1768438776142,0.1,145.82,145.79,0.6622201]
[1768438776338,0.66923679,145.85,145.81,2.68642909]
[1768438776556,0.66923679,145.85,145.8,2.68642909]
[1768438777056,0.66923679,145.83,145.78,2.68642909]
[1768438777969,0.66923679,145.83,145.79,2.68642909]
[1768438778966,0.66923679,145.83,145.77,0.6622201]
[1768438779144,0.66923679,145.83,145.79,2.02420899]
[1768438779970,0.66923679,145.83,145.79,2.68642909]
[1768438783762,0.66923679,145.83,145.79,0.6622201]
[1768438783949,0.66923679,145.83,145.79,2.68642909]
[1768438785972,0.66923679,145.83,145.79,0.6622201]
[1768438786138,0.66923679,145.83,145.79,2.68642909]
[1768438787261,0.66923679,145.81,145.77,2.68642909]
[1768438787460,0.66923679,145.81,145.78,3.81974321]
[1768438788658,3.15752311,145.84,145.78,3.81974321]
[1768438788866,0.66923679,145.83,145.78,3.81974321]
[1768438789254,0.66923679,145.83,145.8,0.6622201]
[1768438790183,0.66923679,145.84,145.8,0.6622201]
[1768438791450,0.66923679,145.84,145.8,3.81974321]
[1768438791652,0.68547546,145.82,145.79,0.67177071]
[1768438792464,19.35602089,145.86,145.79,3.82929382]
[1768438792676,0.68547546,145.84,145.79,3.82929382]
[1768438794187,0.68547546,145.84,145.81,3.82929382]
[1768438794357,0.68547546,145.85,145.82,3.82929382]
[1768438794671,0.68547546,145.87,145.83,3.82929382]
[1768438796182,0.68547546,145.87,145.83,0.67177071]
[1768438796481,0.68547546,145.87,145.82,3.82929382]
[1768438797061,0.68547546,145.87,145.82,0.67177071]
[1768438797383,0.68547546,145.87,145.82,3.82929382]
[1768438797587,0.68547546,145.86,145.82,3.15752311]
[1768438797964,0.68547546,145.86,145.81,3.82929382]
[1768438800085,0.68547546,145.86,145.81,0.67177071]
[1768438800464,0.68547546,145.87,145.81,0.67177071]
[1768438800667,121.72919606,145.9,145.81,0.67177071]
[1768438800871,0.68547546,145.89,145.82,0.67177071]
[1768438801184,0.68547546,145.89,145.85,3.82568228]
[1768438801567,0.68547546,145.89,145.86,3.15391157]
[1768438801980,0.68547546,145.89,145.85,3.82568228]
[1768438802178,0.68547546,145.9,145.86,3.82568228]
[1768438802369,0.78547546,145.91,145.89,3.15391157]
[1768438802563,0.1,145.91,145.89,3.03391157]
[1768438802770,0.1,145.92,145.9,3.1058113]
[1768438802970,0.1,145.92,145.91,3.09391157]
[1768438803271,0.68547546,145.95,145.91,3.15391157]
[1768438803966,0.68547546,145.95,145.92,3.15391157]
[1768438804287,109.32542608,145.98,145.95,0.67177071]
[1768438804288,0.1,145.98,145.95,0.67177071]
[1768438804462,0.78547546,145.98,145.94,0.67177071]
[1768438804662,0.78547546,145.98,145.94,3.15391157]
[1768438805284,0.78547546,145.98,145.94,3.82568228]
[1768438805484,0.78547546,145.98,145.95,3.15391157]
[1768438806387,0.1,145.98,145.96,3.15391157]
[1768438807491,0.1,145.98,145.95,0.67177071]
[1768438807669,0.1,145.98,145.95,3.82568228]
[1768438808374,0.78547546,145.98,145.93,0.67177071]
[1768438808602,0.78547546,145.98,145.95,3.15391157]
[1768438809985,0.78547546,145.98,145.93,0.67177071]
[1768438810293,0.78547546,145.98,145.94,3.82568228]
[1768438812491,0.1,145.98,145.95,0.67177071]
[1768438812676,0.1,145.98,145.95,3.82568228]
[1768438813195,0.78547546,145.98,145.94,3.15391157]
[1768438813974,0.78547546,145.98,145.94,3.82568228]
[1768438814688,0.78547546,145.98,145.93,0.67177071]
[1768438814888,0.78547546,145.98,145.94,3.15391157]
[1768438816078,0.78547546,145.98,145.95,3.15391157]
[1768438816284,0.1,145.98,145.97,3.82568228]
[1768438816489,15.41445492,146.0,145.97,3.82568228]
[1768438816880,16.09993038,146.0,145.97,3.82568228]
[1768438817087,16.09993038,146.0,145.96,3.82568228]
[1768438817591,0.68547546,145.99,145.96,3.82568228]
[1768438818168,0.68547546,145.99,145.96,0.67177071]
[1768438818392,0.68547546,145.99,145.96,3.82568228]
[1768438818593,15.41445492,146.0,145.96,3.82568228]
[1768438818980,16.09993038,146.0,145.97,3.15391157]
[1768438819180,15.41445492,146.0,145.97,3.82568228]
[1768438819373,15.41445492,146.0,145.98,3.82568228]
[1768438819579,12.41715407,146.0,145.99,3.82568228]
[1768438819966,12.41715407,146.0,145.99,0.67177071]
[1768438820490,12.41715407,146.0,145.95,3.15391157]
[1768438820694,12.41715407,146.0,145.98,3.15391157]
[1768438820888,12.41715407,146.0,145.97,3.15391157]
[1768438821071,13.09859627,146.0,145.97,3.15391157]
[1768438821271,0.6814422,145.99,145.91,16.43649964]
[1768438821467,0.6814422,145.99,145.95,3.15391157]
[1768438824300,0.6814422,145.99,145.96,3.15391157]
[1768438824470,13.08296023,146.0,145.97,3.15391157]
[1768438824679,12.41715407,146.0,145.98,3.15391157]
[1768438825379,1.12021666,146.02,145.99,3.15391157]
[1768438825577,0.4544105,146.02,146.0,3.15391157]
[1768438826906,0.66580616,146.06,146.01,3.15391157]
[1768438827196,0.66580616,146.06,146.02,3.15391157]
[1768438827398,0.66580616,146.08,146.03,3.15391157]
[1768438827702,0.66580616,146.08,146.0,6.84912398]
[1768438827897,0.66580616,146.08,146.03,3.15391157]
[1768438828302,0.66580616,146.07,145.98,6.85010251]
[1768438828501,0.66580616,146.07,146.02,3.15391157]
[1768438829281,0.66580616,146.07,146.04,3.15391157]
[1768438829482,0.66580616,146.07,146.03,3.15391157]
[1768438830417,0.66580616,146.09,146.02,22.48216974]
[1768438830581,12.48,146.14,146.02,3.15391157]
[1768438830582,0.66580616,146.06,146.02,3.15391157]
[1768438830887,0.66580616,146.07,146.0,6.84895647]
[1768438831092,0.66580616,146.07,146.02,3.15391157]
[1768438831294,0.66580616,146.07,145.99,6.84967858]
[1768438831498,0.66580616,146.07,146.02,3.15391157]
[1768438831679,0.66580616,146.07,146.0,6.84929674]
[1768438831882,0.66580616,146.07,146.01,3.15391157]
[1768438832484,0.66580616,146.07,146.02,3.15391157]
[1768438834185,0.66580616,146.07,146.03,3.15391157]
[1768438835107,0.66580616,146.07,146.01,3.15391157]
[1768438835414,0.66580616,146.07,146.02,3.15391157]
[1768438837213,0.66580616,146.07,146.01,3.15391157]
[1768438838818,0.66580616,146.07,146.02,3.15391157]
[1768438839205,0.66580616,146.11,146.06,3.15391157]
[1768438839407,0.66580616,146.11,146.07,3.15391157]
[1768438839614,12.48,146.15,146.08,3.15391157]
[1768438839913,0.66580616,146.13,146.09,3.15391157]
[1768438840302,0.66580616,146.13,146.03,12.48]
[1768438840501,0.66580616,146.13,146.09,3.15391157]
[1768438842322,0.66580616,146.15,146.11,3.15391157]
[1768438842501,0.66580616,146.15,146.05,22.46073238]
[1768438842696,0.66580616,146.15,146.11,3.15391157]
[1768438842897,0.66580616,146.15,146.1,3.15391157]
[1768438843823,0.66580616,146.15,146.11,3.15391157]
[1768438846031,0.66580616,146.15,146.12,3.15391157]
[1768438846399,3.15391157,146.18,146.09,3.15391157]
[1768438846400,0.66580616,146.18,146.13,3.15391157]
[1768438846621,0.66580616,146.19,146.17,3.15391157]
[1768438846821,0.66580616,146.21,146.13,12.46]
[1768438847032,0.66580616,146.21,146.17,3.15391157]
[1768438847210,0.66580616,146.2,146.13,12.46]
[1768438847714,0.66580616,146.2,146.15,3.15391157]
[1768438849016,0.66580616,146.19,146.14,3.15391157]
[1768438849410,0.66580616,146.19,146.14,2.01030155]
[1768438849906,0.66580616,146.19,146.15,2.01030155]
[1768438850312,0.66580616,146.19,146.13,12.46]
[1768438850623,0.66580616,146.19,146.15,2.01030155]
[1768438851023,0.69133369,146.18,146.14,2.01030155]
[1768438851198,0.69133369,146.18,146.13,14.47030155]
[1768438851402,0.69133369,146.17,146.13,12.46]
[1768438851628,0.69133369,146.17,146.12,2.01030155]
[1768438851802,0.69133369,146.16,146.11,2.01030155]
[1768438852219,0.69133369,146.16,146.12,2.01030155]
[1768438853215,0.69133369,146.15,146.09,12.46]
[1768438853423,0.69133369,146.14,146.09,14.47030155]
[1768438854021,0.69133369,146.14,146.09,2.01030155]
[1768438855734,0.69133369,146.14,146.1,2.01030155]
[1768438855939,0.69133369,146.14,146.07,9.58331839]
[1768438856123,0.69133369,146.14,146.08,2.01030155]
[1768438856124,0.69133369,146.13,146.08,2.01030155]
[1768438856525,0.69133369,146.12,146.07,2.01030155]
[1768438856721,0.69133369,146.12,146.06,12.46]
[1768438856722,0.69133369,146.11,146.06,12.46]
[1768438857035,0.69133369,146.11,146.06,14.47030155]
[1768438857639,0.69133369,146.11,146.07,2.01030155]
[1768438857843,0.69133369,146.11,146.06,14.47030155]
[1768438858871,0.69133369,146.1,146.05,2.01030155]
[1768438859146,0.69133369,146.09,146.04,2.01030155]
[1768438859347,0.69133369,146.09,146.05,2.01030155]
[1768438860040,0.69133369,146.09,146.04,2.01030155]
[1768438860344,0.69133369,146.09,146.03,2.01030155]
[1768438860641,0.69133369,146.08,146.03,2.01030155]
[1768438861220,2.70163524,146.08,146.03,2.01030155]
[1768438861550,0.69133369,146.07,146.03,2.01030155]
[1768438863339,0.69133369,146.07,146.02,2.01030155]
[1768438863340,0.69133369,146.06,146.02,2.01030155]
[1768438863539,0.69133369,146.06,146.01,2.01030155]
[1768438863540,0.69133369,146.05,146.01,2.01030155]
[1768438864050,0.69133369,146.05,146.0,2.01030155]
[1768438864342,0.69133369,146.05,145.99,2.01030155]
[1768438864343,2.70163524,146.05,145.99,2.01030155]
[1768438864545,2.70163524,146.04,145.98,2.01030155]
[1768438864727,0.69133369,146.03,145.98,2.01030155]
[1768438865048,0.69133369,146.03,145.96,9.61056596]
[1768438865231,0.69133369,146.01,145.97,2.01030155]
[1768438865429,0.69133369,146.0,145.95,2.01030155]
[1768438865649,0.6613337,146.0,145.96,2.01030155]
[1768438866444,0.6613337,146.0,145.94,12.48999999]
[1768438866745,0.6613337,146.0,145.95,2.01030155]
[1768438867123,2.01030155,146.02,145.96,2.01030155]
[1768438867552,0.69133369,146.01,145.96,2.01030155]
[1768438868644,0.69133369,146.01,145.97,2.01030155]
[1768438870246,0.69133369,146.01,145.98,2.01030155]
[1768438874751,0.69133369,146.05,146.0,2.01030155]